bitfinex/quotes_SOLUSD_20251115
["timestamp","ask_amount","ask_price","bid_price","bid_amount"]
[1763181901052,0.14216157,142.11,142.08,1.77736375]
[1763181901224,3.67460564,142.1,142.08,2.48736375]
[1763181901546,0.14216157,142.17,142.11,22.6512]
[1763181901735,9.93098926,142.17,142.16,1.77736375]
[1763181902045,4.69755272,142.19,142.16,2.48736375]
[1763181902249,1.77736375,142.2,142.16,0.71]
[1763181902437,5.27755272,142.2,142.17,2.48736375]
[1763181902632,4.69755272,142.2,142.18,1.77736375]
[1763181902835,4.69755272,142.21,142.19,2.77533237]
[1763181903031,0.14216157,142.22,142.19,3.48533237]
[1763181903345,4.83971429,142.22,142.19,3.48533237]
[1763181903550,4.69755272,142.22,142.21,2.77533237]
[1763181903846,2.81878721,142.24,142.21,2.77533237]
[1763181903847,4.69755272,142.24,142.21,2.77533237]
[1763181904050,4.69755272,142.24,142.21,3.48533237]
[1763181904551,4.69755272,142.24,142.21,2.77533237]
[1763181904760,4.69755272,142.24,142.22,3.48533237]
[1763181904955,4.69755272,142.25,142.22,2.77533237]
[1763181905246,4.69755272,142.25,142.21,2.77533237]
[1763181905247,8.05288509,142.25,142.21,2.77533237]
[1763181905459,4.69755272,142.24,142.21,3.48533237]
[1763181905664,5.27755272,142.24,142.21,2.77533237]
[1763181905830,8.05288509,142.24,142.2,2.77533237]
[1763181906156,0.58,142.24,142.2,3.48533237]
[1763181906357,0.72216157,142.24,142.2,0.71]
[1763181906734,12.56416006,142.23,142.19,2.77533237]
[1763181906927,7.46926218,142.22,142.08,17.59556021]
[1763181907146,8.04926218,142.22,142.18,2.77533237]
[1763181907529,0.58,142.21,142.18,2.77533237]
[1763181908263,0.58,142.21,142.18,3.48533237]
[1763181908444,7.46926218,142.22,142.18,3.48533237]
[1763181908646,8.04926218,142.22,142.18,0.71]
[1763181908945,8.04926218,142.22,142.18,3.48533237]
[1763181909141,4.69392981,142.22,142.13,22.6512]
[1763181909343,4.69392981,142.22,142.18,2.77533237]
[1763181909730,4.69392981,142.22,142.19,3.48533237]
[1763181910176,4.69392981,142.22,142.16,2.77533237]
[1763181910177,14.4827575,142.23,142.2,0.71]
[1763181910342,4.69392981,142.23,142.2,2.77533237]
[1763181910851,8.04926218,142.23,142.19,3.44533237]
[1763181911063,8.04926218,142.23,142.19,0.67]
[1763181911064,5.27392981,142.23,142.19,0.67]
[1763181911363,4.69392981,142.23,142.2,0.67]
[1763181911659,5.27392981,142.23,142.2,0.67]
[1763181911877,9.93098926,142.21,142.09,2.81898586]
[1763181912147,14.62491907,142.21,142.15,3.44533237]
[1763181912356,4.69392981,142.2,142.17,2.77533237]
[1763181912955,4.69392981,142.2,142.17,3.49533237]
[1763181913653,8.04926218,142.2,142.15,0.72]
[1763181913837,8.04926218,142.2,142.13,22.6512]
[1763181914034,8.04926218,142.2,142.15,2.77533237]
[1763181914447,4.69392981,142.2,142.16,3.49533237]
[1763181914649,13.28632163,142.21,142.17,2.77533237]
[1763181914847,4.68695954,142.2,142.17,0.72]
[1763181915662,7.46229191,142.2,142.17,0.72]
[1763181915851,8.04229191,142.2,142.17,0.72]
[1763181916034,4.68695954,142.2,142.17,3.49533237]
[1763181916234,12.70632163,142.21,142.17,3.49533237]
[1763181916461,13.28632163,142.21,142.17,3.49533237]
[1763181916630,2.77533237,142.22,142.18,0.72]
[1763181916836,2.77533237,142.21,142.18,0.72]
[1763181917263,7.46048494,142.21,142.18,0.72]
[1763181917734,7.46048494,142.21,142.13,0.72]
[1763181917735,9.93098926,142.18,142.13,0.72]
[1763181917964,2.77533237,142.17,142.13,0.72]
[1763181918958,0.58,142.17,142.13,0.72]
[1763181919141,2.77533237,142.15,142.11,0.72]
[1763181920046,0.72216157,142.16,142.11,0.72]
[1763181920245,2.77533237,142.15,142.11,0.72]
[1763181920642,3.49749394,142.16,142.11,3.49533237]
[1763181921048,3.49749394,142.16,142.12,0.72]
[1763181921761,2.77533237,142.15,142.12,0.72]
[1763181924838,3.35533237,142.15,142.12,0.72]
[1763181925039,2.77533237,142.15,142.12,0.72]
[1763181927744,8.17771005,142.16,142.12,0.72]
[1763181927945,3.49749394,142.16,142.12,0.72]
[1763181928165,8.17771005,142.16,142.12,0.72]
[1763181928359,3.35533237,142.16,142.12,0.72]
[1763181928540,7.45554848,142.16,142.12,0.72]
[1763181928746,2.77533237,142.16,142.12,0.72]
[1763181928945,7.45554848,142.16,142.12,0.72]
[1763181929166,2.77533237,142.16,142.12,0.72]
[1763181929754,3.35533237,142.16,142.12,0.72]
[1763181929944,2.77533237,142.15,142.12,0.72]
[1763181930447,7.45554848,142.15,142.12,0.72]
[1763181931062,4.68021611,142.15,142.12,0.72]
[1763181931267,2.77533237,142.16,142.12,3.49533237]
[1763181931861,7.45704729,142.16,142.13,0.72]
[1763181933469,3.35533237,142.15,142.11,0.72]
[1763181933968,2.77533237,142.15,142.12,0.72]
[1763181934764,4.68171492,142.16,142.12,0.72]
[1763181935071,8.03704729,142.16,142.12,0.72]
[1763181935965,5.26171492,142.16,142.12,0.72]
[1763181936142,7.45704729,142.16,142.12,0.72]
[1763181936847,4.68171492,142.16,142.12,0.72]
[1763181937170,4.68171492,142.17,142.13,2.77533237]
[1763181937350,7.45704729,142.17,142.13,2.77533237]
[1763181937553,7.45704729,142.17,142.14,0.72]
[1763181937867,114.66882769,142.19,142.15,2.77533237]
[1763181937868,2.77533237,142.19,142.15,2.77533237]
[1763181938063,4.68383579,142.19,142.16,2.77533237]
[1763181938265,4.68383579,142.19,142.12,9.81139898]
[1763181938266,4.68383579,142.2,142.17,3.49533237]
[1763181938462,4.68383579,142.21,142.17,3.49533237]
[1763181938666,17.39015742,142.22,142.18,0.72]
[1763181938863,7.45916816,142.21,142.18,0.72]
[1763181940270,2.77533237,142.19,142.15,0.72]
[1763181940478,12.56416006,142.2,142.15,3.49533237]
[1763181940661,2.77533237,142.2,142.16,2.77533237]
[1763181940975,2.77533237,142.2,142.17,0.72]
[1763181942582,25.42653237,142.21,142.17,0.72]
[1763181942792,2.77533237,142.21,142.17,0.72]
[1763181943156,8.03912602,142.21,142.17,0.72]
[1763181943356,7.45912602,142.21,142.17,0.72]
[1763181943558,4.68379365,142.21,142.17,3.49533237]
[1763181943779,4.68379365,142.21,142.18,0.69]
[1763181944381,4.68379365,142.21,142.18,3.46533237]
[1763181944560,4.68379365,142.22,142.19,2.77533237]
[1763181944759,4.68379365,142.22,142.19,3.46533237]
[1763181944979,4.68379365,142.22,142.2,0.69]
[1763181946074,7.45912602,142.24,142.2,0.69]
[1763181946674,8.03912602,142.24,142.2,0.69]
[1763181947261,7.45912602,142.24,142.2,0.69]
[1763181947457,4.68379365,142.24,142.2,3.46533237]
[1763181947659,4.68379365,142.24,142.21,2.77533237]
[1763181947860,4.68379365,142.24,142.22,2.77533237]
[1763181948082,7.45912602,142.27,142.22,0.69]
[1763181948266,8.03912602,142.27,142.23,0.69]
[1763181948581,7.45912602,142.27,142.23,0.69]
[1763181948782,8.03912602,142.27,142.23,0.69]
[1763181949084,4.68379365,142.27,142.23,0.69]
[1763181949273,4.68379365,142.27,142.24,2.77533237]
[1763181949458,2.77533237,142.28,142.25,0.69]
[1763181949659,2.77533237,142.26,142.2,0.69]
[1763181949858,2.77533237,142.24,142.2,0.69]
[1763181950470,2.77533237,142.24,142.2,3.46533237]
[1763181950669,2.77533237,142.24,142.2,0.69]
[1763181950862,2.77533237,142.24,142.21,0.69]
[1763181956177,3.35533237,142.25,142.21,0.69]
[1763181956480,2.77533237,142.24,142.21,0.69]
[1763181959572,2.77533237,142.25,142.21,0.69]
[1763181960585,3.35533237,142.25,142.21,0.69]
[1763181961284,2.77533237,142.25,142.21,0.69]
[1763181961785,3.35533237,142.25,142.21,0.69]
[1763181962000,2.77533237,142.25,142.21,0.69]
[1763181963193,3.35533237,142.25,142.21,0.69]
[1763181963682,2.77533237,142.25,142.21,0.69]
[1763181964890,1.77585008,142.25,142.21,2.46585008]
[1763181965383,0.72216157,142.26,142.22,0.69]
[1763181965586,1.77585008,142.25,142.22,0.69]
[1763181966869,0.72216157,142.26,142.22,0.69]
[1763181967072,1.77585008,142.25,142.22,0.69]
[1763181970194,1.77585008,142.25,142.21,1.77585008]
[1763181970195,1.77585008,142.24,142.21,0.69]
[1763181974789,0.14216157,142.26,142.21,2.46585008]
[1763181975097,1.77585008,142.25,142.21,2.46585008]
[1763181975286,1.77585008,142.25,142.22,0.67]
[1763181975481,2.35585008,142.25,142.22,0.67]
[1763181978601,1.77585008,142.25,142.22,0.67]
[1763181978904,2.35585008,142.25,142.22,0.67]
[1763181979679,1.77585008,142.25,142.22,0.67]
[1763181981410,6.46302848,142.25,142.22,0.67]
[1763181985314,4.6871784,142.24,142.22,0.67]
[1763181988313,6.46302848,142.25,142.22,0.67]
[1763181988512,4.6871784,142.24,142.22,0.67]
[1763181988898,4.6871784,142.24,142.2,1.77585008]
[1763181989212,4.6871784,142.24,142.21,0.67]
[1763181989420,2.35585008,142.25,142.21,0.67]
[1763181989421,4.6871784,142.23,142.21,0.67]
[1763181989596,4.6871784,142.24,142.21,0.67]
[1763181989800,4.6871784,142.23,142.21,0.67]
[1763181990209,4.6871784,142.23,142.19,1.77585008]
[1763181990420,1.77585008,142.21,142.17,0.67]
[1763181990602,4.6871784,142.2,142.17,0.67]
[1763181990919,4.6871784,142.19,142.17,0.67]
[1763181991222,1.77585008,142.19,142.17,0.67]
[1763181994122,5.2671784,142.21,142.17,0.67]
[1763181994429,1.77585008,142.19,142.17,0.67]
[1763181995522,5.2671784,142.21,142.17,0.67]
[1763181995713,1.77585008,142.19,142.17,0.67]
[1763181996114,5.98046899,142.25,142.18,1.77585008]
[1763181996310,6.47733449,142.24,142.2,1.77585008]
[1763181996625,4.70148441,142.24,142.21,0.67]
[1763181996825,4.70148441,142.24,142.15,5.40933997]
[1763181996826,1.77585008,142.22,142.18,0.67]
[1763181997029,1.77585008,142.21,142.18,0.67]
[1763181997231,1.77585008,142.2,142.18,0.67]
[1763181997525,1.77585008,142.2,142.17,0.67]
[1763181997730,1.77585008,142.2,142.15,1.77585008]
[1763181997908,1.77585008,142.2,142.16,0.67]
[1763181999410,1.77585008,142.2,142.16,2.44585008]
[1763181999826,1.77585008,142.2,142.17,0.67]
[1763182006538,4.84364598,142.22,142.17,0.67]
[1763182006842,6.61949606,142.22,142.18,1.77585008]
[1763182007210,6.61949606,142.22,142.19,0.72]
[1763182008210,6.61949606,142.22,142.19,2.49585008]
[1763182008211,4.70148441,142.22,142.19,2.49585008]
[1763182008548,1.91801165,142.24,142.2,1.77585008]
[1763182008714,6.61594438,142.24,142.2,2.49585008]
[1763182008920,4.69793273,142.24,142.21,0.72]
[1763182009416,7.05378281,142.25,142.21,0.72]
[1763182009616,1.77585008,142.24,142.21,0.72]
[1763182011316,6.47378281,142.25,142.21,2.49585008]
[1763182011516,7.05378281,142.25,142.21,2.49585008]
[1763182011733,7.05378281,142.25,142.22,0.72]
[1763182017649,6.47378281,142.25,142.22,0.72]
[1763182018147,4.69793273,142.25,142.22,2.49585008]
[1763182018349,4.69793273,142.25,142.23,0.72]
[1763182019337,25.14921165,142.26,142.23,0.72]
[1763182019948,1.77585008,142.25,142.23,0.72]
[1763182020257,6.4728609,142.25,142.23,0.72]
[1763182021130,1.77585008,142.25,142.23,0.72]
[1763182021333,6.47251145,142.25,142.23,0.72]
[1763182024246,4.69666137,142.25,142.23,0.72]
[1763182024454,14.06268942,142.24,142.18,0.72]
[1763182024633,14.06268942,142.24,142.17,0.72]
[1763182024634,1.77585008,142.21,142.17,0.72]
[1763182025036,7.19467302,142.22,142.18,1.77585008]
[1763182025540,7.19467302,142.22,142.19,0.72]
[1763182025737,2.81898586,142.21,142.19,0.72]
[1763182027930,2.81898586,142.21,142.18,2.77608224]
[1763182027931,6.1750681,142.21,142.16,2.77608224]
[1763182028130,6.1750681,142.21,142.17,0.72]
[1763182028859,2.77608224,142.19,142.16,0.72]
[1763182029730,8.37154773,142.19,142.16,0.72]
[1763182030461,5.59546549,142.19,142.16,0.72]
[1763182031754,3.35608224,142.2,142.17,2.77608224]
[1763182031755,4.69545696,142.2,142.17,2.77608224]
[1763182031925,8.19370077,142.22,142.18,0.71]
[1763182032131,2.81918455,142.2,142.18,0.71]
[1763182035053,7.61370077,142.22,142.18,0.71]
[1763182035355,21.14388413,142.21,142.18,0.71]
[1763182035552,2.91824381,142.22,142.18,0.71]
[1763182035752,25.97700846,142.22,142.18,3.48608224]
[1763182035952,0.14216157,142.22,142.18,3.48608224]
[1763182036149,4.69260011,142.22,142.19,3.47608224]
[1763182036354,4.69260011,142.22,142.16,9.81036163]
[1763182036355,7.03478024,142.22,142.21,2.77608224]
[1763182036546,0.14216157,142.25,142.21,2.77608224]
[1763182036750,7.17644096,142.25,142.22,0.7]
[1763182036955,7.03427939,142.25,142.22,3.47608224]
[1763182037267,0.14216157,142.26,142.22,3.47608224]
[1763182037578,0.14216157,142.26,142.23,0.7]
[1763182037579,11.72684186,142.26,142.23,0.7]
[1763182037753,4.69356566,142.26,142.23,0.7]
[1763182038270,4.69356566,142.26,142.23,3.47608224]
[1763182038465,4.69359943,142.26,142.23,3.47608224]
[1763182038670,4.69359943,142.26,142.23,0.7]
[1763182038970,4.69359943,142.26,142.23,3.47608224]
[1763182039173,28.82527512,142.27,142.23,3.47608224]
[1763182040451,28.82527512,142.27,142.23,0.7]
[1763182042366,2.77608224,142.26,142.23,0.7]
[1763182043685,26.04919288,142.27,142.23,0.7]
[1763182043879,28.24527512,142.27,142.23,0.7]
[1763182044656,28.24527512,142.27,142.23,3.47608224]
[1763182044859,2.77608224,142.29,142.23,0.7]
[1763182045179,16.98475299,142.3,142.25,2.77608224]
[1763182045475,2.91824381,142.3,142.26,2.77608224]
[1763182045853,7.60820439,142.3,142.27,0.7]
[1763182046666,5.73564123,142.3,142.27,0.7]
[1763182064295,25.62728224,142.31,142.27,0.7]
[1763182064597,28.44467966,142.31,142.27,3.47608224]
[1763182064980,3.01739742,142.31,142.28,0.7]
[1763182065202,0.2,142.31,142.28,3.47608224]
[1763182065693,0.2,142.31,142.29,0.7]
[1763182072397,0.2,142.31,142.29,3.47608224]
[1763182072898,0.2,142.31,142.3,0.7]
[1763182081205,0.2,142.31,142.27,3.01739742]
[1763182081206,0.2,142.31,142.29,0.7]
[1763182084209,5.99432605,142.33,142.29,0.7]
[1763182084403,3.07608224,142.33,142.29,3.47608224]
[1763182084581,0.1,142.33,142.29,3.47608224]
[1763182084788,0.1,142.33,142.3,0.7]
[1763182086193,4.79718454,142.33,142.3,0.7]
[1763182086898,6.5711618,142.33,142.3,0.7]
[1763182087298,2.35397726,142.32,142.29,0.7]
[1763182087701,7.0511618,142.32,142.29,0.7]
[1763182088014,2.35397726,142.32,142.29,0.7]
[1763182088217,7.0511618,142.32,142.29,0.7]
[1763182088515,2.35397726,142.32,142.29,0.7]
[1763182088692,1.77397726,142.32,142.29,0.7]
[1763182095512,4.69718454,142.32,142.29,0.7]
[1763182103237,4.69718454,142.31,142.29,0.7]
[1763182103525,4.69718454,142.32,142.29,0.7]
[1763182103723,4.69718454,142.31,142.29,2.47397726]
[1763182103927,4.69718454,142.32,142.3,0.72]
[1763182104105,4.69718454,142.31,142.3,0.72]
[1763182104309,4.69718454,142.32,142.3,0.72]
[1763182104619,4.69718454,142.31,142.3,0.72]
[1763182104801,4.69718454,142.32,142.3,0.72]
[1763182104998,4.69718454,142.31,142.3,0.72]
[1763182105304,4.69718454,142.32,142.3,0.72]
[1763182105504,4.69718454,142.31,142.3,0.72]
[1763182105805,0.68,142.33,142.3,0.72]
[1763182105806,4.69718454,142.32,142.3,0.72]
[1763182106007,4.69718454,142.31,142.3,0.72]
[1763182106327,4.69718454,142.32,142.3,0.72]
[1763182106537,4.69718454,142.31,142.3,0.72]
[1763182106701,4.69718454,142.32,142.3,0.72]
[1763182106902,4.69718454,142.31,142.3,0.72]
[1763182108534,4.69718454,142.32,142.3,0.72]
[1763182108714,4.69718454,142.31,142.3,0.72]
[1763182109010,4.69718454,142.32,142.3,0.72]
[1763182109210,4.69718454,142.31,142.3,0.72]
[1763182109418,4.69718454,142.32,142.3,0.72]
[1763182109628,4.69718454,142.31,142.3,0.72]
[1763182109823,4.69718454,142.32,142.3,0.72]
[1763182110015,4.69718454,142.31,142.3,0.72]
[1763182110832,4.69718454,142.32,142.3,0.72]
[1763182111029,10.03098926,142.33,142.3,0.72]
[1763182111233,4.72090614,142.32,142.3,0.72]
[1763182111438,10.61098926,142.33,142.3,0.72]
[1763182111745,4.72042978,142.32,142.3,0.72]
[1763182111918,10.03098926,142.33,142.3,0.72]
[1763182112128,4.71955248,142.32,142.3,0.72]
[1763182112328,10.03098926,142.33,142.3,0.72]
[1763182112539,4.7190009,142.32,142.3,0.72]
[1763182112844,10.03098926,142.33,142.3,0.72]
[1763182113020,4.7190009,142.32,142.3,0.72]
[1763182113220,10.03098926,142.33,142.3,0.72]
[1763182113429,4.71872618,142.32,142.3,0.72]
[1763182113753,4.71897083,142.32,142.31,1.77397726]
[1763182114042,0.1,142.33,142.31,1.77397726]
[1763182114342,0.1,142.33,142.32,0.72]
[1763182116234,0.1,142.33,142.32,2.49397726]
[1763182117247,0.1,142.33,142.32,0.72]
[1763182119938,0.1,142.33,142.32,2.49397726]
[1763182120849,0.1,142.33,142.32,9.5898863]
[1763182121247,0.1,142.33,142.32,16.61630563]
[1763182121548,0.1,142.33,142.32,21.52711262]
[1763182121930,0.1,142.33,142.32,16.61630563]
[1763182122132,0.1,142.33,142.32,19.43152187]
[1763182122540,0.1,142.33,142.32,29.36251113]
[1763182123855,0.1,142.33,142.32,2.49397726]
[1763182130463,0.68,142.33,142.29,0.72]
[1763182130650,0.1,142.33,142.3,2.49397726]
[1763182136954,2.45397726,142.33,142.29,1.77397726]
[1763182137361,0.58,142.32,142.29,0.72]
[1763182137742,1.87397726,142.33,142.29,2.49397726]
[1763182137941,2.45397726,142.33,142.29,2.49397726]
[1763182139648,0.58,142.32,142.29,2.49397726]
[1763182141067,0.82216157,142.33,142.3,0.72]
[1763182141374,2.59613883,142.33,142.3,0.72]
[1763182141548,2.01613883,142.33,142.29,2.49397726]
[1763182141748,0.58,142.32,142.29,2.49397726]
[1763182142768,2.01613883,142.33,142.29,2.49397726]
[1763182142958,2.59613883,142.33,142.29,2.49397726]
[1763182143271,0.82216157,142.33,142.29,1.77397726]
[1763182143474,0.82216157,142.33,142.26,22.6512]
[1763182143475,0.1,142.33,142.32,1.77397726]
[1763182143674,0.1,142.33,142.32,0.72]
[1763182144058,0.1,142.33,142.32,2.49397726]
[1763182147094,0.1,142.33,142.32,4.26795452]
[1763182147376,0.1,142.33,142.32,39.26750563]
[1763182148885,0.1,142.33,142.32,35.93591633]
[1763182152478,1.2533507,142.36,142.35,22.6512]
[1763182152785,1.2533507,142.36,142.35,25.4203485]
[1763182153072,1.2533507,142.36,142.35,26.1403485]
[1763182153476,1.2533507,142.36,142.35,10.51408703]
[1763182156973,1.2533507,142.36,142.35,7.74493853]
[1763182157278,1.2533507,142.36,142.35,13.28323553]
[1763182172681,1.2533507,142.36,142.35,6.258297]
[1763182173066,1.2533507,142.36,142.35,13.28323553]
[1763182178886,0.2,142.36,142.35,13.28323553]
[1763182196821,0.78,142.36,142.32,7.73618746]
[1763182197132,0.58,142.35,142.32,3.4791485]
[1763182197317,0.58,142.35,142.32,26.1303485]
[1763182197518,0.58,142.35,142.32,10.50555267]
[1763182198131,0.58,142.35,142.33,2.7691485]
[1763182199921,0.58,142.35,142.34,2.7691485]
[1763182202219,0.2,142.36,142.34,2.7691485]
[1763182202418,0.78,142.36,142.34,2.7691485]
[1763182203345,0.2,142.36,142.35,3.4791485]
[1763182203549,0.2,142.36,142.32,42.98628696]
[1763182203550,0.78,142.36,142.32,22.6512]
[1763182204046,0.58,142.35,142.33,2.7691485]
[1763182204615,0.2,142.36,142.34,3.4791485]
[1763182204935,0.2,142.36,142.35,3.4791485]
[1763182207746,0.78,142.36,142.33,0.71]
[1763182207921,0.78,142.36,142.34,2.7691485]
[1763182208840,0.78,142.36,142.34,1.77241383]
[1763182209023,1.8333507,142.36,142.34,1.77241383]
[1763182209422,1.8333507,142.36,142.35,1.77241383]
[1763182210442,1.2533507,142.36,142.35,1.77241383]
[1763182210644,1.8333507,142.36,142.35,1.77241383]
[1763182211350,1.8333507,142.36,142.34,1.77241383]
[1763182213352,1.2533507,142.36,142.34,1.77241383]
[1763182213558,1.2533507,142.36,142.35,1.77241383]
[1763182214255,1.8333507,142.36,142.35,1.77241383]
[1763182214630,1.8333507,142.36,142.34,1.77241383]
[1763182214830,1.2533507,142.36,142.34,1.77241383]
[1763182215252,1.8333507,142.36,142.34,1.77241383]
[1763182215754,1.8333507,142.36,142.33,0.65]
[1763182216057,0.58,142.35,142.31,1.77241383]
[1763182216235,0.58,142.35,142.32,1.77241383]
[1763182216855,0.58,142.35,142.31,1.77241383]
[1763182217130,2.35241383,142.35,142.3,1.77241383]
[1763182217355,1.77241383,142.34,142.3,1.77241383]
[1763182217551,2.35241383,142.34,142.3,1.77241383]
[1763182217754,0.58,142.33,142.3,1.77241383]
[1763182217933,0.58,142.33,142.29,22.6512]
[1763182218137,0.58,142.33,142.29,24.42361383]
[1763182219051,9.93098926,142.35,142.3,1.77241383]
[1763182219247,0.58,142.34,142.32,1.77241383]
[1763182220532,1.2533507,142.36,142.33,1.77241383]
[1763182220736,0.58,142.35,142.33,1.77241383]
[1763182222258,0.58,142.35,142.34,1.77241383]
[1763182222560,1.8333507,142.36,142.34,1.77241383]
[1763182223062,1.2533507,142.36,142.34,1.77241383]
[1763182223242,0.58,142.35,142.34,1.77241383]
[1763182224251,1.2533507,142.36,142.34,1.77241383]
[1763182224561,1.2533507,142.36,142.35,1.77241383]
[1763182225262,1.2533507,142.36,142.35,2.42241383]
[1763182225565,1.8333507,142.36,142.34,1.77241383]
[1763182225744,0.58,142.35,142.34,1.77241383]
[1763182226764,1.8333507,142.36,142.34,1.77241383]
[1763182227150,1.2533507,142.36,142.34,1.77241383]
[1763182227359,1.2533507,142.36,142.33,2.42241383]
[1763182228155,1.2533507,142.36,142.34,1.77241383]
[1763182228353,1.8333507,142.36,142.34,1.77241383]
[1763182228559,0.58,142.35,142.33,1.77241383]
[1763182228766,0.58,142.35,142.32,2.42241383]
[1763182229164,1.8333507,142.36,142.32,2.42241383]
[1763182229749,1.8333507,142.36,142.33,0.65]
[1763182231972,0.58,142.35,142.31,22.6512]
[1763182232274,2.35241383,142.35,142.29,0.65]
[1763182232485,2.35241383,142.35,142.3,2.42241383]
[1763182232657,0.58,142.34,142.28,22.6512]
[1763182232851,0.58,142.34,142.3,1.77241383]
[1763182233050,2.35241383,142.34,142.29,2.42241383]
[1763182233469,0.58,142.33,142.29,2.42241383]
[1763182234281,0.58,142.33,142.3,1.77241383]
[1763182234575,0.58,142.33,142.3,2.42241383]
[1763182236576,0.58,142.33,142.28,31.45184114]
[1763182236577,0.58,142.34,142.31,2.42241383]
[1763182237877,0.58,142.34,142.31,1.77241383]
[1763182238284,0.58,142.34,142.31,2.42241383]
[1763182240674,0.58,142.34,142.31,1.77241383]
[1763182240849,0.58,142.34,142.31,2.42241383]
[1763182241055,1.2533507,142.36,142.31,1.77241383]
[1763182241377,1.2533507,142.36,142.32,2.42241383]
[1763182241746,1.8333507,142.36,142.33,0.65]
[1763182245742,1.2533507,142.36,142.33,0.65]
[1763182245948,1.2533507,142.36,142.34,1.77241383]
[1763182246349,1.2533507,142.36,142.35,0.68]
[1763182247548,1.2533507,142.36,142.35,2.45241383]
[1763182248071,1.2533507,142.36,142.35,9.12672423]
[1763182248268,1.2533507,142.36,142.35,16.15166276]
[1763182253395,1.2533507,142.36,142.35,21.46890425]
[1763182254285,0.2,142.36,142.35,21.46890425]
[1763182263396,0.2,142.36,142.35,14.44396572]
[1763182263693,0.2,142.36,142.35,21.46890425]
[1763182265194,0.2,142.36,142.35,14.44396572]
[1763182265773,0.78,142.36,142.35,4.90189657]
[1763182266088,0.78,142.36,142.34,1.77241383]
[1763182267775,0.2,142.36,142.34,1.77241383]
[1763182267975,0.2,142.36,142.34,2.45241383]
[1763182269101,0.2,142.36,142.34,1.77241383]
[1763182269479,0.2,142.36,142.32,22.6512]
[1763182269679,0.78,142.36,142.34,1.77241383]
[1763182270903,0.58,142.35,142.33,2.76998762]
[1763182271207,0.58,142.35,142.32,25.42118762]
[1763182271594,0.58,142.35,142.34,2.76998762]
[1763182271908,0.58,142.35,142.33,2.76998762]
[1763182275703,0.58,142.35,142.3,22.6512]
[1763182275896,0.58,142.35,142.32,2.76998762]
[1763182277413,0.58,142.35,142.33,2.76998762]
[1763182278293,0.58,142.35,142.32,2.76998762]
[1763182288521,0.58,142.35,142.33,2.76998762]
[1763182291929,0.58,142.35,142.32,2.76998762]
[1763182292830,0.58,142.35,142.33,2.76998762]
[1763182293209,0.58,142.35,142.32,2.76998762]
[1763182293614,0.58,142.35,142.33,2.76998762]
[1763182293819,10.13098926,142.36,142.34,2.76998762]
[1763182294008,10.71098926,142.36,142.34,2.76998762]
[1763182295023,0.78,142.36,142.33,2.76998762]
[1763182295208,0.78,142.36,142.33,3.46998762]
[1763182296526,0.2,142.36,142.33,2.76998762]
[1763182296707,0.58,142.35,142.33,2.76998762]
[1763182298305,0.58,142.35,142.32,2.76998762]
[1763182298630,0.58,142.35,142.32,3.46998762]
[1763182299026,1.0533507,142.33,142.32,3.46998762]
[1763182307538,1.0533507,142.33,142.32,6.23997524]
[1763182308444,1.0533507,142.33,142.32,13.26639457]
[1763182308445,0.3333507,142.33,142.32,13.26639457]
[1763182309338,0.3333507,142.33,142.32,6.23997524]
[1763182313635,0.3333507,142.33,142.32,13.26639457]
[1763182314524,0.2,142.36,142.32,13.26639457]
[1763182314747,0.2,142.36,142.35,25.42118762]
[1763182315246,0.2,142.36,142.35,26.10118762]
[1763182315545,0.2,142.36,142.35,28.87117524]
[1763182316753,0.2,142.36,142.35,35.89611377]
[1763182323358,0.2,142.36,142.35,28.87117524]
[1763182328845,0.86,142.36,142.35,22.6512]
[1763182329043,0.86,142.36,142.35,25.42118762]
[1763182329449,0.2,142.36,142.35,25.42118762]
[1763182329650,0.2,142.36,142.35,26.10118762]
[1763182330470,0.2,142.36,142.35,28.87117524]
[1763182332866,0.2,142.36,142.35,32.1900243]
[1763182340182,0.2,142.36,142.35,32.2200243]